fUSD/lending_fUSD_20250530
["ID","MTS","AMOUNT","RATE_DAILY","PERIOD"]
[363200944,1748621462418,-3742.49,0.00022821,2]
[363200945,1748621462430,-561.3,0.00022821,2]
[363200946,1748621462440,-3442.75,0.000229,2]
[363200947,1748621462451,-4565.2,0.000229,2]
[363200948,1748621462461,-4565.2,0.000229,2]
[363200949,1748621462471,-539.6099957,0.000229,8]
[363200950,1748621462481,-3442.75,0.000229,2]
[363200951,1748621462491,-500.0,0.00022904,2]
[363200952,1748621462502,-3692.06123982,0.00022928,2]
[363200953,1748621462511,-420.0,0.00022993,2]
[363200954,1748621462521,-420.0,0.00023013,2]
[363200955,1748621462531,-420.0,0.00023013,2]
[363200956,1748621462542,-420.0,0.00023013,2]
[363200957,1748621462556,-161.44205106,0.00023013,2]
[363200958,1748621462566,-416.87536571,0.00023013,2]
[363200959,1748621462576,-443.20150894,0.00023013,2]
[363200960,1748621462586,-420.0,0.00023013,2]
[363200961,1748621462596,-420.0,0.00023013,2]
[363200962,1748621462606,-420.0,0.00023013,2]
[363200963,1748621462616,-420.0,0.00023013,2]
[363200964,1748621462627,-465.97,0.00023013,2]
[363200965,1748621462637,-420.0,0.00023013,2]
[363200966,1748621462647,-420.0,0.00023013,2]
[363200967,1748621462656,-274.07678074,0.00023013,2]
[363200968,1748621462666,-420.0,0.00023013,2]
[363200969,1748621462678,-420.0,0.00023013,2]
[363200970,1748621462691,-420.0,0.00023013,2]
[363200971,1748621462701,-420.0,0.00023013,2]
[363200972,1748621462710,-420.0,0.00023013,2]
[363200973,1748621462722,-420.0,0.00023013,2]
[363200974,1748621462734,-420.0,0.00023013,2]
[363200975,1748621462745,-420.0,0.00023013,2]
[363200976,1748621462756,-420.0,0.00023013,2]
[363200977,1748621462766,-420.0,0.00023013,2]
[363200978,1748621462776,-420.0,0.00023013,2]
[363200979,1748621462786,-479.58,0.00023013,2]
[363200980,1748621462799,-420.0,0.00023013,2]
[363200981,1748621462808,-420.0,0.00023013,2]
[363200982,1748621462818,-420.0,0.00023013,2]
[363200983,1748621462828,-420.0,0.00023013,2]
[363200984,1748621462838,-939.99,0.00023013,2]
[363200985,1748621462847,-420.0,0.00023013,2]
[363200986,1748621462857,-420.0,0.00023013,2]
[363200987,1748621462867,-420.0,0.00023013,2]
[363200988,1748621462878,-420.0,0.00023013,2]
[363200989,1748621462888,-501.62,0.00023013,2]
[363200990,1748621462899,-420.0,0.00023013,2]
[363200991,1748621462915,-420.0,0.00023013,2]
[363200992,1748621462925,-420.0,0.00023013,2]
[363200993,1748621462934,-420.0,0.00023013,2]
[363200994,1748621462942,-471.1,0.00023013,2]
[363200995,1748621462951,-420.0,0.00023013,2]
[363200996,1748621462960,-420.0,0.00023013,2]
[363200997,1748621462970,-420.0,0.00023013,2]
[363200998,1748621462980,-420.0,0.00023013,2]
[363200999,1748621462989,-420.0,0.00023013,2]
[363201000,1748621462999,-420.0,0.00023013,2]
[363201001,1748621463008,-420.0,0.00023013,2]
[363201002,1748621463018,-493.78,0.00023013,2]
[363201003,1748621463028,-420.0,0.00023013,2]
[363201004,1748621463038,-420.0,0.00023013,2]
[363201005,1748621463050,-442.33,0.00023013,2]
[363201006,1748621463061,-420.0,0.00023013,2]
[363201007,1748621463071,-420.0,0.00023013,2]
[363201008,1748621463081,-420.0,0.00023013,2]
[363201009,1748621463091,-654.87,0.00023013,2]
[363201010,1748621463101,-420.0,0.00023013,2]
[363201011,1748621463111,-420.0,0.00023013,2]
[363201012,1748621463121,-420.0,0.00023013,2]
[363201013,1748621463131,-420.0,0.00023013,2]
[363201014,1748621463140,-618.64,0.00023013,2]
[363201015,1748621463150,-420.0,0.00023013,2]
[363201016,1748621463160,-420.0,0.00023013,2]
[363201017,1748621463170,-665.03,0.00023013,2]
[363201018,1748621463179,-420.0,0.00023013,2]
[363201019,1748621463189,-420.0,0.00023013,2]
[363201020,1748621463199,-556.67,0.00023013,2]
[363201021,1748621463209,-215.0,0.00023013,2]
[363201022,1748621463219,-420.0,0.00023013,2]
[363201023,1748621463229,-420.0,0.00023013,2]
[363201024,1748621463239,-420.0,0.00023013,2]
[363201025,1748621463249,-420.0,0.00023013,2]
[363201026,1748621463259,-420.0,0.00023013,2]
[363201027,1748621463269,-420.0,0.00023013,2]
[363201028,1748621463279,-420.0,0.00023013,2]
[363201029,1748621463289,-518.65,0.00023013,2]
[363201030,1748621463299,-420.0,0.00023013,2]
[363201031,1748621463309,-527.91,0.00023013,2]
[363201032,1748621463319,-994.08,0.00023013,2]
[363201033,1748621463329,-832.68,0.00023013,2]
[363201034,1748621463339,-420.0,0.00023013,2]
[363201035,1748621463349,-420.0,0.00023013,2]
[363201036,1748621463359,-420.0,0.00023013,2]
[363201037,1748621463369,-420.0,0.00023013,2]
[363201038,1748621463379,-547.60548806,0.00023013,2]
[363201039,1748621463389,-420.0,0.00023013,2]
[363201040,1748621463401,-502.62,0.00023013,2]
[363201041,1748621463411,-420.0,0.00023013,2]
[363201042,1748621463421,-769.55,0.00023013,2]
[363201043,1748621463431,-420.0,0.00023013,2]
[363201044,1748621463442,-420.0,0.00023013,2]
[363201045,1748621463452,-565.59,0.00023013,2]
[363201046,1748621463463,-420.0,0.00023013,2]
[363201047,1748621463473,-420.0,0.00023013,2]
[363201048,1748621463483,-420.0,0.00023013,2]
[363201049,1748621463493,-250.0,0.00023013,2]
[363201050,1748621463503,-454.46,0.00023013,2]
[363201051,1748621463513,-420.0,0.00023013,2]
[363201052,1748621463523,-420.0,0.00023013,2]
[363201053,1748621463534,-420.0,0.00023013,2]
[363201054,1748621463544,-420.0,0.00023013,2]
[363201055,1748621463555,-420.0,0.00023013,2]
[363201056,1748621463565,-420.0,0.00023013,2]
[363201057,1748621463576,-420.0,0.00023013,2]
[363201058,1748621463587,-591.9,0.00023013,2]
[363201059,1748621463597,-521.81235057,0.00023013,2]
[363201060,1748621463608,-420.0,0.00023013,2]
[363201061,1748621463618,-482.59,0.00023013,2]
[363201062,1748621463628,-1552.41,0.00023013,2]
[363201063,1748621463639,-420.0,0.00023013,2]
[363201064,1748621463649,-420.0,0.00023013,2]
[363201065,1748621463658,-420.0,0.00023013,2]
[363201066,1748621463668,-420.0,0.00023013,2]
[363201067,1748621463680,-663.63,0.00023013,2]
[363201068,1748621463692,-420.0,0.00023013,2]
[363201069,1748621463702,-420.0,0.00023013,2]
[363201070,1748621463712,-456.47,0.00023013,2]
[363201071,1748621463723,-420.0,0.00023013,2]
[363201072,1748621463733,-420.0,0.00023013,2]
[363201073,1748621463743,-563.71,0.00023013,2]
[363201074,1748621463754,-420.0,0.00023013,2]
[363201075,1748621463770,-565.86,0.00023013,2]
[363201076,1748621463781,-499.67,0.00023013,2]
[363201077,1748621463791,-466.48,0.00023013,2]
[363201078,1748621463801,-420.0,0.00023013,2]
[363201079,1748621463812,-560.93144206,0.00023013,2]
[363201080,1748621463822,-477.92,0.00023013,2]
[363201081,1748621463832,-420.0,0.00023013,2]
[363201082,1748621463843,-472.21,0.00023013,2]
[363201083,1748621463853,-420.0,0.00023013,2]
[363201084,1748621463863,-712.95,0.00023013,2]
[363201085,1748621463873,-1641.75,0.00023013,2]
[363201086,1748621463884,-420.0,0.00023013,2]
[363201087,1748621463895,-420.0,0.00023013,2]
[363201088,1748621463905,-420.0,0.00023013,2]
[363201089,1748621463915,-420.0,0.00023013,2]
[363201090,1748621463926,-420.0,0.00023013,2]
[363201091,1748621463937,-420.0,0.00023013,2]
[363201092,1748621464208,-714.4,0.00023013,2]
[363201093,1748621464218,-420.0,0.00023013,2]
[363201094,1748621464228,-424.32,0.00023013,2]
[363201095,1748621464238,-420.0,0.00023013,2]
[363201096,1748621464247,-420.0,0.00023013,2]
[363201097,1748621464257,-533.52,0.00023013,2]
[363201098,1748621464267,-420.0,0.00023013,2]
[363201099,1748621464277,-420.0,0.00023013,2]
[363201100,1748621464286,-420.0,0.00023013,2]
[363201101,1748621464296,-420.0,0.00023013,2]
[363201102,1748621464307,-420.0,0.00023013,2]
[363201103,1748621464317,-420.0,0.00023013,2]
[363201104,1748621464327,-420.0,0.00023013,2]
[363201105,1748621464337,-558.89,0.00023013,2]
[363201106,1748621464347,-754.53,0.00023013,2]
[363201107,1748621464357,-420.0,0.00023013,2]
[363201108,1748621464367,-420.0,0.00023013,2]
[363201109,1748621464377,-420.0,0.00023013,2]
[363201110,1748621464387,-420.0,0.00023013,2]
[363201111,1748621464397,-420.0,0.00023013,2]
[363201112,1748621464407,-420.0,0.00023013,2]
[363201113,1748621464417,-420.0,0.00023013,2]
[363201114,1748621464427,-392.59334021,0.00023013,2]
[363201115,1748621464437,-420.0,0.00023013,2]
[363201116,1748621464447,-420.0,0.00023013,2]
[363201117,1748621464456,-420.0,0.00023013,2]
[363201118,1748621464466,-1074.85,0.00023013,2]
[363201119,1748621464475,-420.0,0.00023013,2]
[363201120,1748621464485,-420.0,0.00023013,2]
[363201121,1748621464494,-420.0,0.00023013,2]
[363201122,1748621464504,-420.0,0.00023013,2]
[363201123,1748621464514,-420.0,0.00023013,2]
[363201124,1748621464524,-522.22,0.00023013,2]
[363201125,1748621464534,-420.0,0.00023013,2]
[363201126,1748621464543,-420.0,0.00023013,2]
[363201127,1748621464553,-420.0,0.00023013,2]
[363201128,1748621464563,-420.0,0.00023013,2]
[363201129,1748621464574,-432.56694647,0.00023013,2]
[363201130,1748621464585,-420.0,0.00023013,2]
[363201131,1748621464595,-420.0,0.00023013,2]
[363201132,1748621464605,-420.0,0.00023013,2]
[363201133,1748621464615,-420.0,0.00023013,2]
[363201134,1748621464626,-420.0,0.00023013,2]
[363201135,1748621464635,-1366.25,0.00023013,2]
[363201136,1748621464645,-420.0,0.00023013,2]
[363201137,1748621464655,-420.0,0.00023013,2]
[363201138,1748621464664,-420.0,0.00023013,2]
[363201139,1748621464674,-528.28,0.00023013,2]
[363201140,1748621464688,-420.0,0.00023013,2]
[363201141,1748621464698,-420.0,0.00023013,2]
[363201142,1748621464707,-420.0,0.00023013,2]
[363201143,1748621464717,-420.0,0.00023013,2]
[363201144,1748621464727,-420.0,0.00023013,2]
[363201145,1748621464738,-456.12,0.00023013,2]
[363201146,1748621464747,-426.6,0.00023013,2]
[363201147,1748621464758,-420.0,0.00023013,2]
[363201148,1748621464768,-420.0,0.00023013,2]
[363201149,1748621464778,-420.0,0.00023013,2]
[363201150,1748621464787,-420.0,0.00023013,2]
[363201151,1748621464797,-420.0,0.00023013,2]
[363201152,1748621464807,-420.0,0.00023013,2]
[363201153,1748621464817,-420.0,0.00023013,2]
[363201154,1748621464827,-420.0,0.00023013,2]
[363201155,1748621464837,-420.0,0.00023013,2]
[363201156,1748621464847,-420.0,0.00023013,2]
[363201157,1748621464857,-420.0,0.00023013,2]
[363201158,1748621464866,-451.25,0.00023013,2]
[363201159,1748621464876,-669.88,0.00023013,2]
[363201160,1748621464886,-420.0,0.00023013,2]
[363201161,1748621464895,-420.0,0.00023013,2]
[363201162,1748621464905,-633.2,0.00023013,2]
[363201163,1748621464915,-420.0,0.00023013,2]
[363201164,1748621464927,-420.0,0.00023013,2]
[363201165,1748621464938,-420.0,0.00023013,2]
[363201166,1748621464948,-420.0,0.00023013,2]
[363201167,1748621464958,-420.0,0.00023013,2]
[363201168,1748621464968,-420.0,0.00023013,2]
[363201169,1748621464978,-420.0,0.00023013,2]
[363201170,1748621464987,-420.0,0.00023013,2]
[363201171,1748621464997,-420.0,0.00023013,2]
[363201172,1748621465007,-491.81,0.00023013,2]
[363201173,1748621465016,-420.0,0.00023013,2]
[363201174,1748621465027,-420.0,0.00023013,2]
[363201175,1748621465036,-420.0,0.00023013,2]
[363201176,1748621465046,-984.97,0.00023013,2]
[363201177,1748621465056,-420.0,0.00023013,2]
[363201178,1748621465066,-420.0,0.00023013,2]
[363201179,1748621465075,-420.0,0.00023013,2]
[363201180,1748621465086,-561.86,0.00023013,2]
[363201181,1748621465096,-420.0,0.00023013,2]
[363201182,1748621465106,-646.16,0.00023013,2]
[363201183,1748621465116,-609.7,0.00023013,2]
[363201184,1748621465126,-1453.08,0.00023013,2]
[363201185,1748621465136,-1000.74,0.00023013,2]
[363201186,1748621465146,-420.0,0.00023013,2]
[363201187,1748621465156,-420.0,0.00023013,2]
[363201188,1748621465166,-420.0,0.00023013,2]
[363201189,1748621465176,-180.6323803,0.00023013,2]
[363201190,1748621465185,-420.0,0.00023013,2]
[363201191,1748621465194,-420.0,0.00023013,2]
[363201192,1748621465204,-420.0,0.00023013,2]
[363201193,1748621465213,-420.0,0.00023013,2]
[363201194,1748621465223,-584.98,0.00023013,2]
[363201195,1748621465232,-653.92,0.00023013,2]
[363201196,1748621465242,-602.51,0.00023013,2]
[363201197,1748621465255,-420.0,0.00023013,2]
[363201198,1748621465272,-420.0,0.00023013,2]
[363201199,1748621465282,-420.0,0.00023013,2]
[363201200,1748621465292,-474.55,0.00023013,2]
[363201201,1748621465302,-611.17,0.00023013,2]
[363201202,1748621465311,-715.72,0.00023013,2]
[363201203,1748621465321,-46503.35,0.00023013,2]
[363201204,1748621465331,-601.37,0.00023013,2]
[363201205,1748621465340,-420.0,0.00023013,2]
[363201206,1748621465350,-420.0,0.00023013,2]
[363201207,1748621465360,-547.8,0.00023013,2]
[363201208,1748621465370,-420.0,0.00023013,2]
[363201209,1748621465380,-420.0,0.00023013,2]
[363201210,1748621465389,-420.0,0.00023013,2]
[363201211,1748621465399,-1585.24,0.00023013,2]
[363201212,1748621465408,-420.0,0.00023013,2]
[363201213,1748621465420,-420.0,0.00023013,2]
[363201214,1748621465429,-420.0,0.00023013,2]
[363201215,1748621465439,-420.0,0.00023013,2]
[363201216,1748621465448,-420.0,0.00023013,2]
[363201217,1748621465458,-477.09,0.00023013,2]
[363201218,1748621465467,-824.32,0.00023013,2]
[363201219,1748621465477,-420.0,0.00023013,2]
[363201220,1748621465487,-448.1,0.00023013,2]
[363201221,1748621465496,-535.78,0.00023013,2]
[363201222,1748621465506,-674.1,0.00023013,2]
[363201223,1748621465515,-660.41,0.00023013,2]
[363201224,1748621465525,-521.11,0.00023013,2]
[363201225,1748621465535,-420.0,0.00023013,2]
[363201226,1748621465544,-586.5,0.00023013,2]
[363201227,1748621465555,-486.66,0.00023013,2]
[363201228,1748621465564,-420.0,0.00023013,2]
[363201229,1748621465573,-660.07,0.00023013,2]
[363201230,1748621465583,-435.08,0.00023013,2]
[363201231,1748621465593,-607.52,0.00023013,2]
[363201232,1748621465602,-6048.52,0.00023013,2]
[363201233,1748621465612,-656.82,0.00023013,2]
[363201234,1748621465622,-988.3,0.00023013,2]
[363201235,1748621465632,-420.0,0.00023013,2]
[363201236,1748621465642,-420.0,0.00023013,2]
[363201237,1748621465652,-420.0,0.00023013,2]
[363201238,1748621465661,-757.13,0.00023013,2]
[363201239,1748621465671,-4088.4,0.00023013,2]
[363201240,1748621465682,-420.0,0.00023013,2]
[363201241,1748621465693,-1445.55,0.00023013,2]
[363201242,1748621465702,-420.0,0.00023013,2]
[363201243,1748621465712,-957.56,0.00023013,2]
[363201244,1748621465723,-1373.18,0.00023013,2]
[363201245,1748621465733,-3058.68,0.00023013,2]
[363201246,1748621465743,-2153.43,0.00023013,2]
[363201247,1748621465753,-420.0,0.00023013,2]
[363201248,1748621465763,-420.0,0.00023013,2]
[363201249,1748621465773,-1240.58,0.00023013,2]
[363201250,1748621465783,-420.0,0.00023013,2]
[363201251,1748621465793,-420.0,0.00023013,2]
[363201252,1748621465803,-457.49,0.00023013,2]
[363201253,1748621465813,-420.0,0.00023013,2]
[363201254,1748621465822,-420.0,0.00023013,2]
[363201255,1748621465832,-1202.6,0.00023013,2]
[363201256,1748621465842,-1697.84,0.00023013,2]
[363201257,1748621465852,-420.0,0.00023013,2]
[363201258,1748621465861,-420.0,0.00023013,2]
[363201259,1748621465871,-420.0,0.00023013,2]
[363201260,1748621465881,-1453.56,0.00023013,2]
[363201261,1748621465891,-4664.26,0.00023013,2]
[363201262,1748621465901,-420.0,0.00023013,2]
[363201263,1748621465911,-661.23,0.00023013,2]
[363201264,1748621465922,-557.77,0.00023013,2]
[363201265,1748621465932,-539.38,0.00023013,2]
[363201266,1748621465941,-573.95,0.00023013,2]
[363201267,1748621465951,-892.62,0.00023013,2]
[363201268,1748621465961,-421.77,0.00023013,2]
[363201269,1748621465970,-420.0,0.00023013,2]
[363201270,1748621465981,-420.0,0.00023013,2]
[363201271,1748621465991,-420.0,0.00023013,2]
[363201272,1748621466001,-474.82,0.00023013,2]
[363201273,1748621466010,-559.5,0.00023013,2]
[363201274,1748621466020,-420.0,0.00023013,2]
[363201275,1748621466030,-420.0,0.00023013,2]
[363201276,1748621466039,-1026.82,0.00023013,2]
[363201277,1748621466050,-904.65,0.00023013,2]
[363201278,1748621466059,-420.0,0.00023013,2]
[363201279,1748621466069,-478.53,0.00023013,2]
[363201280,1748621466078,-1487.96,0.00023013,2]
[363201281,1748621466088,-420.0,0.00023013,2]
[363201282,1748621466098,-1781.02,0.00023013,2]
[363201283,1748621466109,-465.53,0.00023013,2]
[363201284,1748621466119,-712.19,0.00023013,2]
[363201285,1748621466129,-2725.8,0.00023013,2]
[363201286,1748621466139,-8689.25,0.00023013,2]
[363201287,1748621466149,-445.2,0.00023013,2]
[363201288,1748621466158,-3605.9,0.00023013,2]
[363201289,1748621466168,-455.83,0.00023013,2]
[363201290,1748621466177,-420.0,0.00023013,2]
[363201291,1748621466187,-420.0,0.00023013,2]
[363201292,1748621466196,-420.96,0.00023013,2]
[363201293,1748621466206,-420.0,0.00023013,2]
[363201294,1748621466216,-456.81,0.00023013,2]
[363201295,1748621466226,-420.0,0.00023013,2]
[363201296,1748621466235,-689.0,0.00023013,2]
[363201297,1748621466244,-4965.11,0.00023013,2]
[363201298,1748621466254,-814.32,0.00023013,2]
[363201299,1748621466263,-420.0,0.00023013,2]
[363201300,1748621466273,-684.53,0.00023013,2]
[363201301,1748621466282,-2825.92,0.00023013,2]
[363201302,1748621466291,-420.0,0.00023013,2]
[363201303,1748621466302,-420.0,0.00023013,2]
[363201304,1748621466311,-1113.68,0.00023013,2]
[363201305,1748621466320,-420.0,0.00023013,2]
[363201306,1748621466330,-490.12,0.00023013,2]
[363201307,1748621466340,-420.0,0.00023013,2]
[363201308,1748621466350,-420.0,0.00023013,2]
[363201309,1748621466360,-985.67,0.00023013,2]
[363201310,1748621466370,-420.0,0.00023013,2]
[363201311,1748621466379,-421.96,0.00023013,2]
[363201312,1748621466388,-420.0,0.00023013,2]
[363201313,1748621466398,-420.0,0.00023013,2]
[363201314,1748621466408,-790.94,0.00023013,2]
[363201315,1748621466417,-654.29,0.00023013,2]
[363201316,1748621466428,-420.0,0.00023013,2]
[363201317,1748621466438,-1212.39,0.00023013,2]
[363201318,1748621466447,-669.88,0.00023013,2]
[363201319,1748621466456,-679.73,0.00023013,2]
[363201320,1748621466466,-420.0,0.00023013,2]
[363201321,1748621466475,-1005.75,0.00023013,2]
[363201322,1748621466484,-420.0,0.00023013,2]
[363201323,1748621466493,-421.04,0.00023013,2]
[363201324,1748621466503,-472.22,0.00023013,2]
[363201325,1748621466512,-1292.13,0.00023013,2]
[363201326,1748621466522,-1024.15,0.00023013,2]
[363201327,1748621466532,-598.05,0.00023013,2]
[363201328,1748621466614,-507.86,0.00023013,2]
[363201329,1748621466623,-420.0,0.00023013,2]
[363201330,1748621466633,-420.0,0.00023013,2]
[363201331,1748621466642,-1280.93,0.00023013,2]
[363201332,1748621466653,-485.5,0.00023013,2]
[363201333,1748621466664,-1383.42,0.00023013,2]
[363201334,1748621466675,-420.0,0.00023013,2]
[363201335,1748621466688,-420.0,0.00023013,2]
[363201336,1748621466698,-420.0,0.00023013,2]
[363201337,1748621466707,-453.1,0.00023013,2]
[363201338,1748621466719,-765.35,0.00023013,2]
[363201339,1748621466729,-420.0,0.00023013,2]
[363201340,1748621466738,-518.37,0.00023013,2]
[363201341,1748621466747,-1656.7,0.00023013,2]
[363201342,1748621466757,-3462.85,0.00023013,2]
[363201343,1748621466767,-1733.26,0.00023013,2]
[363201344,1748621466777,-1766.38,0.00023013,2]
[363201345,1748621466787,-1121.05,0.00023013,2]
[363201346,1748621466799,-779.82,0.00023013,2]
[363201347,1748621466808,-420.0,0.00023013,2]
[363201348,1748621466817,-1733.29,0.00023013,2]
[363201349,1748621466827,-430.54,0.00023013,2]
[363201350,1748621466837,-1057.53,0.00023013,2]
[363201351,1748621466847,-498.86,0.00023013,2]
[363201352,1748621466858,-4651.68,0.00023013,2]
[363201353,1748621466867,-420.0,0.00023013,2]
[363201354,1748621466877,-586.33,0.00023013,2]
[363201355,1748621466886,-883.98,0.00023013,2]
[363201356,1748621466896,-420.0,0.00023013,2]
[363201357,1748621466905,-509.36,0.00023013,2]
[363201358,1748621466915,-420.0,0.00023013,2]
[363201359,1748621466926,-462.09,0.00023013,2]
[363201360,1748621466935,-420.0,0.00023013,2]
[363201361,1748621466945,-1000.0,0.00023013,2]
[363201362,1748621466955,-420.0,0.00023013,2]
[363201363,1748621466964,-429.88,0.00023013,2]
[363201364,1748621466974,-918.5,0.00023013,2]
[363201365,1748621466983,-6943.32,0.00023013,2]
[363201366,1748621466993,-478.33,0.00023013,2]
[363201367,1748621467003,-420.0,0.00023013,2]
[363201368,1748621467012,-1670.99,0.00023013,2]
[363201369,1748621467022,-494.89,0.00023013,2]
[363201370,1748621467032,-420.0,0.00023013,2]
[363201371,1748621467041,-420.0,0.00023013,2]
[363201372,1748621467051,-420.0,0.00023013,2]
[363201373,1748621467061,-481.15,0.00023013,2]
[363201374,1748621467071,-420.0,0.00023013,2]
[363201375,1748621467081,-420.0,0.00023013,2]
[363201376,1748621467092,-420.0,0.00023013,2]
[363201377,1748621467102,-5313.78,0.00023013,2]
[363201378,1748621467111,-423.74,0.00023013,2]
[363201379,1748621467121,-422.14,0.00023013,2]
[363201380,1748621467130,-426.98,0.00023013,2]
[363201381,1748621467140,-641.17,0.00023013,2]
[363201382,1748621467151,-420.0,0.00023013,2]
[363201383,1748621467160,-420.0,0.00023013,2]
[363201384,1748621467169,-420.0,0.00023013,2]
[363201385,1748621467179,-420.0,0.00023013,2]
[363201386,1748621467190,-488.76,0.00023013,2]
[363201387,1748621467200,-759.34,0.00023013,2]
[363201388,1748621467210,-692.95,0.00023013,2]
[363201389,1748621467220,-1159.63,0.00023013,2]
[363201390,1748621467230,-2604.25,0.00023013,2]
[363201391,1748621467239,-420.0,0.00023013,2]
[363201392,1748621467249,-2234.11,0.00023013,2]
[363201393,1748621467258,-420.0,0.00023013,2]
[363201394,1748621467267,-420.0,0.00023013,2]
[363201395,1748621467277,-2926.35,0.00023013,2]
[363201396,1748621467286,-7394.8,0.00023013,2]
[363201397,1748621467295,-420.0,0.00023013,2]
[363201398,1748621467306,-972.44,0.00023013,2]
[363201399,1748621467316,-420.0,0.00023013,2]
[363201400,1748621467326,-420.0,0.00023013,2]
[363201401,1748621467336,-545.89,0.00023013,2]
[363201402,1748621467346,-1266.42,0.00023013,2]
[363201403,1748621467357,-559.57,0.00023013,2]
[363201404,1748621467366,-1031.04,0.00023013,2]
[363201405,1748621467376,-420.0,0.00023013,2]
[363201406,1748621467385,-17120.95,0.00023013,2]
[363201407,1748621467395,-1111.37,0.00023013,2]
[363201408,1748621467404,-420.0,0.00023013,2]
[363201409,1748621467414,-1000.0,0.00023068,2]
[363201410,1748621467423,-500.0,0.00023073,2]
[363201411,1748621467433,-500.0,0.00023073,2]
[363201412,1748621467442,-500.0,0.00023073,2]
[363201413,1748621467451,-500.0,0.00023073,2]
[363201414,1748621467460,-500.51754316,0.00023073,2]
[363201415,1748621467470,-500.0,0.00023073,2]
[363201416,1748621467479,-500.0,0.00023073,2]
[363201417,1748621467488,-957.07,0.00023095,2]
[363201418,1748621467498,-2443.1,0.00023095,2]
[363201419,1748621467507,-1682.09,0.00023095,2]
[363201420,1748621467517,-3253.57,0.00023095,2]
[363201421,1748621467526,-3184.32,0.00023095,2]
[363201422,1748621467536,-658.9,0.00023095,2]
[363201423,1748621467545,-4073.28,0.00023095,2]
[363201424,1748621467556,-12023.02,0.00023095,2]
[363201425,1748621467565,-3742.49,0.00023095,2]
[363201426,1748621467575,-561.3,0.00023095,2]
[363201427,1748621467584,-1680.0,0.00023102,2]
[363201428,1748621467594,-3692.06123982,0.0002315,2]
[363201429,1748621467603,-194.21740704,0.00023187,2]
[363201430,1748621467613,-4395.72129476,0.00023187,2]
[363201431,1748621467624,-420.0,0.00023287,2]
[363201432,1748621467634,-420.0,0.00023287,2]
[363201433,1748621467644,-420.0,0.00023287,2]
[363201434,1748621467654,-420.0,0.00023287,2]
[363201435,1748621467664,-420.0,0.00023287,2]
[363201436,1748621467673,-420.0,0.00023287,2]
[363201437,1748621467685,-420.0,0.00023287,2]
[363201438,1748621467695,-465.97,0.00023287,2]
[363201439,1748621467704,-420.0,0.00023287,2]
[363201440,1748621467714,-420.0,0.00023287,2]
[363201441,1748621467725,-420.0,0.00023287,2]
[363201442,1748621467735,-420.0,0.00023287,2]
[363201443,1748621467744,-420.0,0.00023287,2]